bitfinex/quotes_SOLUSD_20250417
["timestamp","ask_amount","ask_price","bid_price","bid_amount"]
[1744917659417,30.29377829,133.17,133.12,30.29377829]
[1744917659617,30.29377829,133.18,133.13,30.29377829]
[1744917659815,30.29377829,133.18,133.14,30.29377829]
[1744917660320,30.29377829,133.18,133.13,30.29377829]
[1744917660623,7.50919876,133.17,133.13,30.29377829]
[1744917660843,7.5075075,133.2,133.16,30.29377829]
[1744917661015,30.29377829,133.19,133.12,26.0]
[1744917661220,45.94829611,133.19,133.14,45.94829611]
[1744917661539,45.94829611,133.19,133.15,45.94829611]
[1744917661715,45.94829611,133.19,133.12,26.0]
[1744917661920,45.94829611,133.19,133.14,45.94829611]
[1744917662120,7.50863493,133.18,133.14,45.94829611]
[1744917662320,7.50863493,133.18,133.12,33.51163443]
[1744917662529,7.50863493,133.18,133.14,45.94829611]
[1744917662947,7.50819972,133.19,133.16,45.94829611]
[1744917663240,53.45649583,133.19,133.15,45.94829611]
[1744917663626,7.50694392,133.21,133.18,45.94829611]
[1744917663820,7.50694392,133.21,133.2,45.94829611]
[1744917664020,7.50694392,133.21,133.14,45.94829611]
[1744917664021,7.50694392,133.21,133.19,45.94829611]
[1744917664238,26.27063138,133.23,133.19,45.94829611]
[1744917664441,72.21892749,133.23,133.18,45.94829611]
[1744917665033,26.27063138,133.23,133.19,45.94829611]
[1744917665234,72.21892749,133.23,133.14,45.94829611]
[1744917665427,72.21892749,133.23,133.15,7.51002249]
[1744917665827,45.94829611,133.22,133.13,21.0]
[1744917666035,45.94829611,133.2,133.15,45.94829611]
[1744917666442,45.94829611,133.18,133.13,21.0]
[1744917666639,45.94829611,133.19,133.15,45.94829611]
[1744917666828,45.94829611,133.22,133.18,45.94829611]
[1744917667020,45.94829611,133.21,133.17,45.94829611]
[1744917667220,45.94829611,133.2,133.16,45.94829611]
[1744917667528,45.94829611,133.17,133.1,11.72007942]
[1744917667726,45.94829611,133.16,133.11,45.94829611]
[1744917668422,45.94829611,133.14,133.1,2.6293174]
[1744917668821,0.14216157,133.16,133.1,2.6293174]
[1744917669019,45.94829611,133.14,133.1,2.6293174]
[1744917669223,45.94829611,133.13,133.1,2.6293174]
[1744917669549,7.51258357,133.11,133.1,2.6293174]
[1744917670050,53.46087968,133.11,133.1,2.6293174]
[1744917670224,32.23163243,133.11,133.1,2.6293174]
[1744917670428,81.1662141,133.11,133.1,2.6293174]
[1744917670631,18.79181043,133.1,133.06,0.03]
[1744917670840,45.94829611,133.07,133.06,0.03]
[1744917671347,18.64964886,133.06,133.04,0.03]
[1744917671532,64.88226811,133.07,133.04,0.03]
[1744917671533,7.51597143,133.05,133.04,0.03]
[1744917672452,53.46426754,133.05,133.04,0.03]
[1744917672649,18.64964886,133.04,133.01,0.03]
[1744917672868,65.02442968,133.02,133.01,0.03]
[1744917673148,64.88226811,133.0,132.94,45.94829611]
[1744917673347,28.6994,133.03,132.95,45.94829611]
[1744917673548,7.51766651,133.02,132.97,45.94829611]
[1744917673851,6.5964,133.11,133.01,45.94829611]
[1744917674042,45.94829611,133.08,133.0,45.94829611]
[1744917674363,45.94829611,133.04,132.99,0.03]
[1744917674655,45.94829611,133.04,132.99,45.97829611]
[1744917674826,45.94829611,133.05,133.01,45.94829611]
[1744917675030,45.94829611,133.06,133.01,45.94829611]
[1744917675231,45.94829611,133.05,133.0,45.94829611]
[1744917675735,45.94829611,133.04,132.99,0.03]
[1744917675933,45.94829611,133.04,132.99,45.97829611]
[1744917676152,53.4648655,133.04,132.99,0.03]
[1744917676351,53.4648655,133.04,132.99,45.97829611]
[1744917676753,7.51656939,133.04,132.99,45.97829611]
[1744917676943,53.4648655,133.04,132.99,45.97829611]
[1744917677267,18.933972,133.08,133.02,45.94829611]
[1744917677447,7.51391567,133.09,133.05,45.94829611]
[1744917677635,74.6816534,133.1,133.02,7.5172002]
[1744917677832,60.0574778,133.11,133.06,45.94829611]
[1744917678136,60.0574778,133.11,133.07,45.94829611]
[1744917678137,45.94829611,133.11,133.07,45.94829611]
[1744917678341,53.4604839,133.12,133.07,45.94829611]
[1744917678540,45.94829611,133.1,133.02,28.7372002]
[1744917678745,45.94829611,133.09,133.02,28.7372002]
[1744917678961,45.94829611,133.1,133.06,45.94829611]
[1744917679254,45.94829611,133.11,133.06,45.94829611]
[1744917679492,7.51218779,133.12,133.08,45.94829611]
[1744917679647,53.4604839,133.12,133.06,7.51511581]
[1744917679833,53.4604839,133.12,133.07,45.94829611]
[1744917680344,53.4604839,133.12,133.08,45.94829611]
[1744917680645,7.51140789,133.14,133.1,45.94829611]
[1744917680846,45.94829611,133.12,133.07,45.94829611]
[1744917681041,7.51140789,133.14,133.07,45.94829611]
[1744917681251,45.94829611,133.13,133.08,45.94829611]
[1744917681455,26.16105675,133.14,133.06,7.51511581]
[1744917681456,35.26524132,133.15,133.1,45.94829611]
[1744917681647,59.99353743,133.15,133.1,45.94829611]
[1744917681848,45.94829611,133.13,133.06,7.51540658]
[1744917682052,45.94829611,133.13,133.08,45.94829611]
[1744917682254,45.94829611,133.13,133.09,45.94829611]
[1744917682454,14.04524132,133.15,133.09,45.94829611]
[1744917682650,45.94829611,133.14,133.09,45.94829611]
[1744917683266,18.64964886,133.17,133.11,30.31129723]
[1744917683457,18.64964886,133.17,133.1,30.31129723]
[1744917683666,30.31129723,133.15,133.11,30.31129723]
[1744917683869,7.50978191,133.16,133.11,30.31129723]
[1744917683870,30.31129723,133.16,133.11,30.31129723]
[1744917684167,7.5098338,133.16,133.12,30.31129723]
[1744917684463,30.31129723,133.17,133.12,30.31129723]
[1744917685063,30.31129723,133.16,133.11,30.31129723]
[1744917685242,30.31129723,133.15,133.08,47.51996993]
[1744917685447,30.31129723,133.14,133.08,21.22]
[1744917685649,30.31129723,133.12,133.07,37.82603788]
[1744917685947,30.31129723,133.11,133.07,30.31129723]
[1744917686149,30.31129723,133.11,133.06,30.31129723]
[1744917686347,37.82364549,133.12,133.07,30.31129723]
[1744917686654,30.31129723,133.11,133.06,30.31129723]
[1744917686865,30.31129723,133.11,133.07,30.31129723]
[1744917687462,37.82391516,133.11,133.07,30.31129723]
[1744917687857,37.82351595,133.12,133.07,30.31129723]
[1744917688453,30.31129723,133.11,133.06,30.31129723]
[1744917688658,30.31129723,133.1,133.05,30.31129723]
[1744917689055,37.82449517,133.1,133.05,37.82725599]
[1744917689452,30.31129723,133.09,133.02,47.22]
[1744917689671,30.31129723,133.08,133.04,30.31129723]
[1744917689868,30.31129723,133.09,133.04,30.31129723]
[1744917690047,7.51319794,133.1,133.03,30.31129723]
[1744917690048,30.31129723,133.08,133.03,30.31129723]
[1744917690249,18.64964886,133.09,133.04,30.31129723]
[1744917690445,30.31129723,133.08,133.03,30.31129723]
[1744917690683,30.31129723,133.08,133.02,21.22]
[1744917690973,30.31129723,133.08,133.04,30.31129723]
[1744917691173,37.82468686,133.1,133.05,30.31129723]
[1744917691350,7.5127492,133.11,133.07,30.31129723]
[1744917691550,7.5127492,133.11,133.08,30.31129723]
[1744917691760,48.96094609,133.13,133.08,30.31129723]
[1744917691761,7.51145496,133.13,133.08,30.31129723]
[1744917691967,7.51145496,133.13,133.09,30.31129723]
[1744917692460,37.82275219,133.13,133.08,30.31129723]
[1744917692860,30.31129723,133.1,133.03,7.5171014]
[1744917693057,30.31129723,133.1,133.05,30.31129723]
[1744917693375,37.82500975,133.09,133.05,30.31129723]
[1744917693870,30.31129723,133.07,133.03,30.31129723]
[1744917694046,30.31129723,133.08,133.03,30.31129723]
[1744917694568,30.31129723,133.06,133.01,30.31129723]
[1744917694973,30.31129723,133.06,132.99,0.03]
[1744917694974,30.31129723,133.04,132.99,0.03]
[1744917695156,7.5171014,133.03,132.99,30.34129723]
[1744917695575,7.5171014,133.03,133.0,30.31129723]
[1744917696072,7.5171014,133.03,132.99,0.03]
[1744917696265,7.5171014,133.03,132.99,30.34129723]
[1744917696661,7.5171014,133.03,133.0,30.31129723]
[1744917697275,7.51653638,133.04,133.01,30.31129723]
[1744917697576,30.31129723,133.06,133.01,30.31129723]
[1744917697763,30.31129723,133.06,133.02,30.31129723]
[1744917697965,30.31129723,133.06,133.01,30.31129723]
[1744917698166,7.51556963,133.06,133.02,30.31129723]
[1744917698559,30.31129723,133.04,132.99,0.03]
[1744917698875,30.31129723,133.01,132.99,0.03]
[1744917699168,18.64964886,133.05,132.99,30.34129723]
[1744917699372,37.82783361,133.04,132.99,30.34129723]
[1744917700574,30.31129723,133.03,132.99,0.03]
[1744917701168,30.59562037,133.0,132.99,0.03]
[1744917701377,37.83235619,132.96,132.95,0.03]
[1744917701680,7.52105896,132.96,132.95,0.03]
[1744917703356,7.52069001,132.97,132.95,0.03]
[1744917704654,7.51961109,132.99,132.95,30.34129723]
[1744917705052,7.51961109,132.99,132.96,30.31129723]
[1744917705255,51.53129723,133.02,132.97,30.31129723]
[1744917705475,7.51829104,133.01,132.98,30.31129723]
[1744917705673,37.82958827,133.01,132.96,30.31129723]
[1744917705875,30.31129723,133.0,132.95,0.03]
[1744917706258,18.64964886,133.0,132.95,30.34129723]
[1744917706449,30.31129723,132.99,132.95,0.03]
[1744917707258,30.31129723,132.99,132.84,7.927]
[1744917707259,30.31129723,132.96,132.84,7.927]
[1744917707582,7.52332229,132.92,132.88,30.31129723]
[1744917708180,7.52332229,132.92,132.89,30.31129723]
[1744917708383,7.52332229,132.92,132.9,30.31129723]
[1744917708678,7.52332229,132.92,132.89,30.31129723]
[1744917709172,7.52332229,132.92,132.86,7.52654997]
[1744917709352,7.52332229,132.92,132.89,30.31129723]
[1744917709552,7.52332229,132.92,132.86,7.52654997]
[1744917709553,7.5229645,132.93,132.91,30.31129723]
[1744917709772,7.52162467,132.95,132.91,30.31129723]
[1744917709960,7.52162467,132.95,132.86,37.8378472]
[1744917710270,7.52162467,132.95,132.91,30.31129723]
[1744917710475,18.79181043,132.94,132.86,7.52654997]
[1744917710678,18.79181043,132.94,132.85,7.52713275]
[1744917710852,7.52275633,132.93,132.85,7.52713275]
[1744917711059,37.83405356,132.93,132.88,30.31129723]
[1744917711364,7.52275633,132.93,132.84,15.45470257]
[1744917711555,7.52275633,132.93,132.88,30.31129723]
[1744917711761,7.52275633,132.93,132.89,30.31129723]
[1744917712261,7.52275633,132.93,132.84,60.27433521]
[1744917712484,7.52162467,132.95,132.86,30.31129723]
[1744917712789,49.1124168,132.98,132.94,30.31129723]
[1744917712969,7.52049334,132.97,132.93,30.31129723]
[1744917713174,7.52049334,132.97,132.89,33.52483625]
[1744917713485,37.83179057,132.97,132.89,33.52483625]
[1744917713674,30.31129723,132.96,132.91,30.31129723]
[1744917713978,37.83179057,132.97,132.92,30.21129723]
[1744917714178,7.52049334,132.97,132.93,30.31129723]
[1744917714377,7.52049334,132.97,132.94,30.31129723]
[1744917714561,7.52006068,132.98,132.95,30.31129723]
[1744917715079,7.52006068,132.98,132.94,30.31129723]
[1744917715863,30.31129723,132.95,132.88,7.52554713]
[1744917716177,30.31129723,132.94,132.87,7.52607954]
[1744917716483,30.31129723,132.94,132.86,33.52658358]
[1744917716660,30.31129723,132.93,132.88,30.31129723]
[1744917717061,30.31129723,132.94,132.89,30.31129723]
[1744917717575,7.52275633,132.93,132.85,7.52728641]
[1744917718080,0.42648471,132.92,132.84,15.45468384]
[1744917718262,30.4534588,132.92,132.87,30.31129723]
[1744917718461,30.4534588,132.92,132.84,15.45468384]
[1744917718677,30.4534588,132.92,132.87,30.31129723]
[1744917719168,7.52388834,132.91,132.87,30.31129723]
[1744917719375,7.52388834,132.91,132.88,30.31129723]
[1744917719755,7.52388834,132.91,132.85,26.0]
[1744917719963,7.52388834,132.91,132.84,7.927]
[1744917720172,37.83518557,132.91,132.86,30.31129723]
[1744917720370,30.31129723,132.87,132.83,2.5993174]
[1744917720571,30.31129723,132.85,132.83,2.5993174]
[1744917720781,0.42648471,132.89,132.83,2.5993174]
[1744917720971,30.31129723,132.86,132.83,2.5993174]
[1744917721283,30.31129723,132.84,132.83,2.5993174]
[1744917721467,37.83858364,132.85,132.83,2.5993174]
[1744917721663,32.4008,132.9,132.83,2.5993174]
[1744917721664,7.52502069,132.89,132.83,2.5993174]
[1744917721868,18.79181043,132.88,132.83,32.91061463]
[1744917722178,7.52502069,132.89,132.86,30.31129723]
[1744917722371,7.52502069,132.89,132.85,30.31129723]
[1744917722560,30.31129723,132.88,132.83,2.5993174]
[1744917722771,30.31129723,132.87,132.83,2.5993174]
[1744917723387,37.83858364,132.85,132.83,2.5993174]
[1744917723588,7.52615338,132.87,132.83,2.5993174]
[1744917723764,7.52615338,132.87,132.83,32.91061463]
[1744917723961,37.83703912,132.88,132.83,2.5993174]
[1744917724166,29.42466475,132.9,132.83,10.1274854]
[1744917724381,7.52466475,132.9,132.83,10.1274854]
[1744917724578,7.52466475,132.9,132.86,30.31129723]
[1744917725290,30.31129723,132.88,132.83,32.91061463]
[1744917725494,30.31129723,132.87,132.83,2.5993174]
[1744917725669,18.79181043,132.89,132.83,32.91061463]
[1744917725875,49.10310766,132.89,132.84,30.31129723]
[1744917726169,7.52466475,132.9,132.86,30.31129723]
[1744917726693,25.04397729,132.93,132.87,30.31129723]
[1744917726991,18.80366035,132.96,132.9,30.31129723]
[1744917727197,6.5288,132.97,132.9,7.52428245]
[1744917727402,6.5288,132.97,132.92,30.31129723]
[1744917727403,7.52105896,132.96,132.92,30.31129723]
[1744917727697,7.52105896,132.96,132.9,7.52428245]
[1744917727877,30.31129723,132.95,132.87,7.52615338]
[1744917728079,30.31129723,132.91,132.83,2.5993174]
[1744917728280,30.31129723,132.87,132.83,2.5993174]
[1744917728999,30.31129723,132.88,132.83,32.91061463]
[1744917729403,7.52558699,132.88,132.84,30.31129723]
[1744917729592,37.83688422,132.88,132.83,2.5993174]
[1744917729792,37.83688422,132.88,132.83,32.91061463]
[1744917729983,30.31129723,132.87,132.83,2.5993174]
[1744917730184,37.83688422,132.88,132.83,32.91061463]
[1744917730898,7.52388834,132.91,132.86,30.31129723]
[1744917731084,7.52388834,132.91,132.87,30.31129723]
[1744917731780,37.83518557,132.91,132.83,2.5993174]
[1744917731985,37.83518557,132.91,132.86,30.31129723]
[1744917732186,26.3336092,132.91,132.87,30.31129723]
[1744917732485,37.83518557,132.91,132.87,30.31129723]
[1744917732886,7.52388834,132.91,132.87,30.31129723]
[1744917734282,7.52388834,132.91,132.88,30.31129723]
[1744917734687,37.83405356,132.93,132.85,7.52728641]
[1744917734888,30.31129723,132.92,132.87,30.31129723]
[1744917735311,30.31129723,132.91,132.87,30.31129723]
[1744917735611,37.8357517,132.9,132.85,30.31129723]
[1744917735986,30.31129723,132.88,132.83,2.5993174]
[1744917736190,30.31129723,132.89,132.84,30.31129723]
[1744917736895,30.31129723,132.89,132.83,2.5993174]
[1744917737094,30.31129723,132.88,132.83,2.5993174]
[1744917737400,26.33174943,132.92,132.86,30.31129723]
[1744917737606,30.31129723,132.91,132.86,30.31129723]
[1744917737799,30.31129723,132.91,132.83,10.12759594]
[1744917738002,30.31129723,132.88,132.83,2.5993174]
[1744917738197,0.28432314,132.9,132.83,2.5993174]
[1744917738696,30.31129723,132.87,132.83,2.5993174]
[1744917739202,30.31129723,132.86,132.83,2.5993174]
[1744917739384,0.14216157,132.88,132.83,2.5993174]
[1744917739586,56.64886965,132.89,132.84,30.31129723]
[1744917739879,7.52502069,132.89,132.83,2.5993174]
[1744917740084,30.31129723,132.88,132.83,32.91061463]
[1744917740304,37.83518557,132.91,132.86,30.31129723]
[1744917740495,7.52324939,132.93,132.9,30.31129723]
[1744917740690,7.52324939,132.93,132.87,7.6143]
[1744917741211,7.52324939,132.93,132.9,30.31129723]
[1744917741391,7.52219046,132.94,132.9,30.31129723]
[1744917741989,7.52219046,132.94,132.91,30.31129723]
[1744917742193,7.52173731,132.95,132.92,30.31129723]
[1744917742395,30.31129723,132.93,132.87,15.14035696]
[1744917742612,30.31129723,132.94,132.89,30.31129723]
[1744917742915,7.52049334,132.97,132.93,30.31129723]
[1744917743091,7.51879699,133.0,132.96,30.31129723]
[1744917743292,7.51800364,133.02,132.99,30.31129723]
[1744917743514,30.31129723,133.02,132.97,30.31129723]
[1744917743713,26.30882236,133.04,132.97,30.31129723]
[1744917743912,26.30882236,133.04,133.0,30.31129723]
[1744917744098,30.31129723,133.03,132.99,30.31129723]
[1744917744414,26.30882236,133.04,133.0,30.31129723]
[1744917744714,7.51653638,133.04,133.0,30.31129723]
[1744917746221,37.82557435,133.08,133.04,30.31129723]
[1744917746529,7.57727712,133.08,133.02,30.31129723]
[1744917746719,7.57727712,133.08,132.98,26.0]
[1744917746720,30.31129723,133.06,133.01,30.31129723]
[1744917746905,30.31129723,133.05,133.0,30.31129723]
[1744917747114,18.79181043,133.07,133.01,30.31129723]
[1744917747416,7.51597143,133.05,133.01,30.31129723]
[1744917747816,30.31129723,133.07,133.02,30.31129723]
[1744917748029,18.84869281,133.08,133.02,30.31129723]
[1744917748203,30.31129723,133.07,133.02,30.31129723]
[1744917748704,7.51484181,133.07,133.02,30.31129723]
[1744917748906,37.82613904,133.07,133.02,30.31129723]
[1744917749516,30.31129723,133.06,133.02,30.31129723]
[1744917749705,30.31129723,133.05,133.0,30.31129723]
[1744917749905,26.30194634,133.07,133.0,30.31129723]
[1744917750100,30.31129723,133.06,133.01,30.31129723]
[1744917750295,30.31129723,133.06,132.97,7.52011197]
[1744917750495,26.30194634,133.07,133.01,30.31129723]
[1744917750719,37.82726866,133.05,132.97,7.52011197]
[1744917751217,37.82726866,133.05,133.01,30.31129723]
[1744917751400,26.30590002,133.05,133.0,30.31129723]
[1744917751602,37.82726866,133.05,133.0,30.31129723]
[1744917751909,30.31129723,133.03,132.98,30.31129723]
[1744917752217,30.31129723,133.01,132.96,56.31129723]
[1744917752599,30.31129723,133.02,132.97,30.31129723]
[1744917752801,7.51823171,133.01,132.97,30.31129723]
[1744917753724,18.78850091,133.07,133.0,30.31129723]
[1744917753910,30.31129723,133.05,133.01,30.31129723]
[1744917754111,30.31129723,133.05,133.0,30.31129723]
[1744917754625,18.78850091,133.07,133.0,30.31129723]
[1744917754924,7.51653638,133.04,133.0,30.31129723]
[1744917755824,37.82783361,133.04,132.99,30.31129723]
[1744917756018,37.82783361,133.04,133.0,30.31129723]
[1744917756225,30.31129723,133.03,132.96,7.52097974]
[1744917756402,30.31129723,133.02,132.97,30.31129723]
[1744917756607,26.30787733,133.04,132.97,30.31129723]
[1744917756809,30.31129723,133.02,132.97,30.31129723]
[1744917757122,37.82905913,133.02,132.98,30.31129723]
[1744917757820,7.5177619,133.02,132.98,30.31129723]
[1744917758029,37.82905913,133.02,132.95,15.21065526]
[1744917758335,7.5177619,133.02,132.98,30.31129723]
[1744917759309,30.31129723,133.03,132.98,30.31129723]
[1744917759502,7.51575991,133.06,133.02,30.31129723]
[1744917759714,7.51575991,133.06,133.03,30.31129723]
[1744917759918,7.51575991,133.06,133.02,30.31129723]
[1744917760313,30.31129723,133.04,132.99,30.31129723]
[1744917760706,7.51575991,133.06,132.99,30.31129723]
[1744917760707,30.31129723,133.03,132.99,30.31129723]
[1744917760907,30.31129723,133.03,132.98,30.31129723]
[1744917761107,30.31129723,133.04,132.99,30.31129723]
[1744917761402,7.5171014,133.03,132.99,30.31129723]
[1744917761608,7.5171014,133.03,133.0,30.31129723]
[1744917761824,7.5171014,133.03,132.99,30.31129723]
[1744917762027,7.5171014,133.03,132.97,7.52027911]
[1744917762332,30.31129723,132.98,132.92,31.85599723]
[1744917762626,30.31129723,132.97,132.92,31.85599723]
[1744917763032,30.31129723,132.97,132.92,39.37931507]
[1744917763339,37.83235619,132.96,132.92,1.5447]
[1744917764008,37.83235619,132.96,132.89,33.52476327]
[1744917764328,30.31129723,132.93,132.88,9.17440408]
[1744917764530,30.31129723,132.94,132.89,30.31129723]
[1744917765319,30.31129723,132.95,132.9,30.31129723]
[1744917765517,30.31129723,132.94,132.89,37.83594464]
[1744917765715,30.31129723,132.94,132.89,30.31129723]
[1744917766109,30.31129723,132.94,132.88,9.17422886]
[1744917766312,30.31129723,132.94,132.9,30.31129723]
[1744917766728,30.31129723,132.91,132.83,2.5993174]
[1744917766921,0.14216157,132.92,132.84,30.31129723]
[1744917767130,30.31129723,132.88,132.84,30.31129723]
[1744917767334,30.31129723,132.88,132.83,40.43894314]
[1744917767510,7.52456382,132.9,132.85,30.31129723]
[1744917767714,30.31129723,132.89,132.84,30.31129723]
[1744917768529,30.31129723,132.89,132.84,37.83868062]
[1744917769333,30.31129723,132.89,132.83,40.43883508]
[1744917769334,30.31129723,132.88,132.83,40.43883508]
[1744917769508,30.31129723,132.88,132.83,10.12753785]
[1744917769714,30.31129723,132.88,132.83,40.43883508]
[1744917769913,30.31129723,132.9,132.85,30.31129723]
[1744917770111,30.31129723,132.88,132.83,40.43883508]
[1744917770518,30.31129723,132.86,132.83,2.5993174]
[1744917771210,37.83782347,132.87,132.83,2.5993174]
[1744917771412,30.31129723,132.86,132.83,2.5993174]
[1744917772627,37.83804562,132.86,132.83,2.5993174]
[1744917772833,30.31129723,132.85,132.83,2.5993174]
[1744917773035,37.83804562,132.86,132.83,2.5993174]
[1744917774736,30.31129723,132.86,132.83,2.5993174]
[1744917775234,37.83803231,132.86,132.83,2.5993174]
[1744917776127,37.83765155,132.87,132.83,2.5993174]
[1744917776324,7.52502069,132.89,132.85,30.31129723]
[1744917776521,37.83631792,132.89,132.85,30.31129723]
[1744917776716,37.83631792,132.89,132.84,30.31129723]
[1744917776916,37.83631792,132.89,132.84,37.83903881]
[1744917777523,30.31129723,132.88,132.84,7.52774158]
[1744917777721,30.31129723,132.88,132.84,37.83903881]
[1744917778132,37.83631792,132.89,132.84,37.83903881]
[1744917779019,30.31129723,132.91,132.86,30.31129723]
[1744917779716,7.52332229,132.92,132.88,30.31129723]
[1744917780027,30.37429723,132.95,132.9,30.31129723]
[1744917780230,30.31129723,132.94,132.89,37.83599395]
[1744917780431,0.063,132.95,132.89,37.83599395]
[1744917780629,30.37429723,132.95,132.9,30.31129723]
[1744917780829,0.063,132.95,132.89,37.83599395]
[1744917781029,0.063,132.95,132.9,30.31129723]
[1744917781231,30.37429723,132.95,132.9,30.31129723]
[1744917781425,30.31129723,132.93,132.87,26.0]
[1744917781742,0.063,132.95,132.87,56.31129723]
[1744917781743,30.31129723,132.92,132.87,56.31129723]
[1744917781943,30.31129723,132.89,132.85,30.31129723]
[1744917782357,30.31129723,132.89,132.83,28.5993174]
[1744917782562,30.31129723,132.87,132.83,2.5993174]
[1744917782854,30.31129723,132.86,132.83,2.5993174]
[1744917783054,37.83831809,132.86,132.83,2.5993174]
[1744917784846,7.52702086,132.86,132.83,2.5993174]
[1744917785044,30.31129723,132.88,132.83,32.91061463]
[1744917785344,7.52502069,132.89,132.85,30.31129723]
[1744917785848,7.52460592,132.9,132.86,30.31129723]
[1744917786144,0.063,132.95,132.89,30.31129723]
[1744917786347,0.063,132.95,132.92,30.31129723]
[1744917786569,0.063,132.95,132.91,30.31129723]
[1744917786935,0.063,132.95,132.88,26.0]
[1744917786936,0.063,132.95,132.9,26.0]
[1744917787247,0.063,132.95,132.93,30.31129723]
[1744917787550,0.063,132.95,132.94,30.31129723]
[1744917787747,0.063,132.95,132.91,26.3336092]
[1744917787932,0.063,132.95,132.94,30.31129723]
[1744917788949,0.063,132.95,132.93,56.31129723]
[1744917789451,0.063,132.95,132.94,30.31129723]
[1744917789651,0.063,132.95,132.93,33.52252508]
[1744917789834,0.063,132.95,132.93,63.83382231]
[1744917790035,0.063,132.95,132.94,30.31129723]
[1744917790856,0.063,132.95,132.93,63.83382231]
[1744917791045,0.063,132.95,132.93,63.83399191]
[1744917791554,0.063,132.95,132.94,30.31129723]
[1744917793869,0.063,132.95,132.93,26.0]
[1744917794034,0.063,132.95,132.94,30.31129723]
[1744917795738,0.063,132.95,132.91,26.0]
[1744917796039,0.063,132.95,132.92,30.31129723]
[1744917796239,0.063,132.95,132.93,30.31129723]
[1744917797532,30.37429723,132.95,132.88,7.52558699]
[1744917797757,30.31129723,132.92,132.89,26.0]
[1744917798242,37.83487267,132.92,132.89,26.0]
[1744917798437,37.83487267,132.92,132.87,51.55129723]
[1744917798838,37.83487267,132.92,132.88,30.31129723]
[1744917799247,37.83487267,132.92,132.84,82.9]
[1744917799248,30.31129723,132.89,132.83,2.5993174]
[1744917799441,30.31129723,132.89,132.84,30.31129723]
[1744917800156,30.31129723,132.89,132.83,28.5993174]
[1744917800157,7.52357544,132.92,132.88,30.31129723]
[1744917800356,7.52357544,132.92,132.87,30.31129723]
[1744917800357,37.83487267,132.92,132.87,30.31129723]
[1744917800544,30.31129723,132.91,132.87,30.31129723]
[1744917801244,37.83487267,132.92,132.87,30.31129723]
[1744917802035,7.52357544,132.92,132.87,30.31129723]
[1744917802252,37.83487267,132.92,132.87,30.31129723]
[1744917802954,37.83487267,132.92,132.88,30.31129723]
[1744917803154,7.52357544,132.92,132.88,30.31129723]
[1744917803346,37.83487267,132.92,132.87,30.31129723]
[1744917803546,7.52357544,132.92,132.87,30.31129723]
[1744917803839,30.31129723,132.92,132.87,37.83732441]
[1744917804039,30.31129723,132.92,132.88,30.31129723]
[1744917804241,26.38876739,132.95,132.88,30.31129723]
[1744917804452,30.31129723,132.93,132.88,30.31129723]
[1744917804740,30.31129723,132.9,132.85,47.24]
[1744917804935,30.31129723,132.9,132.85,77.55129723]
[1744917805142,30.31129723,132.88,132.85,21.24]
[1744917805355,30.31129723,132.89,132.85,21.24]
[1744917805758,30.31129723,132.9,132.86,30.31129723]
[1744917806055,30.31129723,132.91,132.86,30.31129723]
[1744917806852,30.31129723,132.9,132.85,28.7672334]
[1744917807051,30.31129723,132.89,132.85,21.24]
[1744917807358,30.31129723,132.9,132.85,59.07842069]
[1744917807962,30.31129723,132.91,132.86,30.31129723]
[1744917808160,30.31129723,132.92,132.88,30.31129723]
[1744917808964,30.31129723,132.91,132.87,30.31129723]
[1744917809162,37.51691122,132.95,132.88,30.31129723]
[1744917809368,30.31129723,132.92,132.87,37.83720566]
[1744917810443,30.31129723,132.92,132.88,30.31129723]
[1744917810672,30.31129723,132.93,132.88,30.31129723]
[1744917810850,30.31129723,132.92,132.87,7.52590843]
[1744917811148,7.52244026,132.94,132.88,30.31129723]
[1744917811349,30.31129723,132.94,132.89,30.31129723]
[1744917811548,7.58486643,132.95,132.9,30.31129723]
[1744917811749,0.063,132.95,132.92,30.31129723]
[1744917812167,0.063,132.95,132.93,30.31129723]
[1744917812569,0.063,132.95,132.92,30.31129723]
[1744917812767,0.063,132.95,132.89,32.2972]
[1744917812768,0.063,132.95,132.93,30.31129723]
[1744917812966,0.063,132.95,132.89,32.2972]
[1744917813169,0.063,132.95,132.91,30.31129723]
[1744917813384,0.063,132.95,132.9,7.52445447]
[1744917813669,0.063,132.95,132.91,30.31129723]
[1744917813864,30.31129723,132.94,132.9,7.52445447]
[1744917814059,30.37429723,132.95,132.9,37.8357517]
[1744917814872,0.063,132.95,132.92,30.31129723]
[1744917815373,0.063,132.95,132.94,30.31129723]
[1744917816575,0.063,132.95,132.92,26.0]
[1744917816762,0.063,132.95,132.93,30.31129723]
[1744917816957,0.063,132.95,132.94,37.83348769]
[1744917817856,0.063,132.98,132.97,26.0]
[1744917818193,0.063,132.98,132.97,20.5]
[1744917818386,0.063,132.98,132.97,46.5]
[1744917819061,0.063,132.98,132.97,20.5]
[1744917822978,0.063,132.98,132.97,28.02049334]